fUST/lending_fUST_20250623
["ID","MTS","AMOUNT","RATE_DAILY","PERIOD"]
[367036753,1750626640936,-187.872181,0.000264,2]
[367036754,1750626640947,-1000.0,0.0002642,5]
[367036755,1750626640956,-1000.0,0.0002644,5]
[367036756,1750626640966,-1000.0,0.0002646,5]
[367036757,1750626640975,-2000.0,0.00026465,7]
[367036758,1750626640985,-2000.0,0.00026465,7]
[367036759,1750626640994,-2000.0,0.00026465,7]
[367036760,1750626641003,-2000.0,0.00026465,7]
[367036761,1750626641012,-2000.0,0.00026465,7]
[367036762,1750626641022,-2000.0,0.00026465,7]
[367036763,1750626641033,-2000.0,0.00026465,7]
[367036764,1750626641042,-2000.0,0.00026465,7]
[367036765,1750626641051,-2000.0,0.00026465,7]
[367036766,1750626641060,-2000.0,0.00026465,7]
[367036767,1750626641069,-5699.22300025,0.00026466,2]
[367036768,1750626641078,-500.0,0.00026466,2]
[367036769,1750626641088,-150.0,0.00026473,2]
[367036770,1750626641097,-500.0,0.00026473,2]
[367036771,1750626641106,-500.0,0.00026473,2]
[367036772,1750626641116,-500.0,0.00026473,2]
[367036773,1750626641126,-500.0,0.00026473,2]
[367036774,1750626641135,-600.0,0.00026473,2]
[367036775,1750626641144,-500.0,0.00026473,2]
[367036776,1750626641154,-500.0,0.00026473,2]
[367036777,1750626641163,-500.0,0.00026473,2]
[367036778,1750626641173,-600.65169996,0.00026473,2]
[367036779,1750626641182,-500.0,0.00026473,2]
[367036780,1750626641191,-500.0,0.00026473,2]
[367036781,1750626641201,-500.0,0.00026473,2]
[367036782,1750626641210,-5106.48301265,0.00026475,2]
[367036783,1750626641723,-780.13998553,0.00023866,10]
[367036784,1750626641733,-83.51507798,0.00024003,10]
[367036785,1750626641744,-696.62490755,0.00024003,10]
[367036786,1750626641753,-99.19697361,0.00024141,10]
[367036787,1750626641764,-403.67280999,0.00024141,10]
[367036791,1750626643658,-277.27020193,0.00024141,10]
[367036792,1750626643668,-780.13998553,0.00024279,10]
[367036793,1750626643677,-780.13998553,0.00024417,11]
[367036794,1750626643687,-780.13998553,0.00024555,11]
[367036795,1750626643697,-780.13998553,0.00024693,11]
[367036796,1750626643707,-780.13998553,0.00024831,12]
[367036797,1750626643717,-500.0,0.00024889,2]
[367036798,1750626643726,-198.94947451,0.00024889,2]
[367036799,1750626643737,-500.0,0.00024889,2]
[367036800,1750626643747,-500.0,0.00024889,2]
[367036801,1750626643757,-500.0,0.00024889,2]
[367036802,1750626643766,-780.13998553,0.00024969,12]
[367036803,1750626643775,-780.13998553,0.00025107,12]
[367036804,1750626643785,-780.13998553,0.00025245,12]
[367036805,1750626643795,-780.13998553,0.00025383,13]
[367036806,1750626643804,-780.13998553,0.00025521,13]
[367036807,1750626643814,-780.13998553,0.00025659,13]
[367036808,1750626643824,-780.13998553,0.00025797,13]
[367036809,1750626643834,-780.13998553,0.00025934,14]
[367036810,1750626643843,-780.13998553,0.00026072,14]
[367036811,1750626643853,-780.13998553,0.0002621,14]
[367036812,1750626643864,-592.7399876,0.00026475,2]
[367036813,1750626643874,-196.344,0.00026476,7]
[367036814,1750626643884,-196.344,0.00026476,7]
[367036815,1750626643893,-196.344,0.00026476,7]
[367036816,1750626643902,-196.344,0.00026476,7]
[367036817,1750626643912,-196.344,0.00026476,7]
[367036818,1750626643922,-196.344,0.00026476,7]
[367036819,1750626643931,-196.344,0.00026476,7]
[367036820,1750626643942,-196.344,0.00026476,7]
[367036821,1750626643954,-196.344,0.00026476,7]
[367036822,1750626643963,-196.344,0.00026476,7]
[367036823,1750626643973,-196.344,0.00026476,7]
[367036824,1750626643984,-196.344,0.00026476,7]
[367036825,1750626643993,-196.344,0.00026476,7]
[367036826,1750626644002,-196.344,0.00026476,7]
[367036827,1750626644012,-196.344,0.00026476,7]
[367036828,1750626644021,-196.344,0.00026476,7]
[367036829,1750626644030,-196.344,0.00026476,7]
[367036830,1750626644039,-196.344,0.00026476,7]
[367036831,1750626644048,-196.344,0.00026476,7]
[367036832,1750626644057,-196.344,0.00026476,7]
[367036833,1750626644066,-616.261544,0.00026476,7]
[367036834,1750626644075,-616.261544,0.00026476,7]
[367036835,1750626644084,-616.261544,0.00026476,7]
[367036836,1750626644093,-616.261544,0.00026476,7]
[367036837,1750626644103,-616.261544,0.00026476,7]
[367036838,1750626644112,-616.261544,0.00026476,7]
[367036839,1750626644122,-616.261544,0.00026476,7]
[367036840,1750626644131,-616.261544,0.00026476,7]
[367036841,1750626644140,-616.261544,0.00026476,7]
[367036842,1750626644151,-616.261544,0.00026476,7]
[367036843,1750626644160,-616.261544,0.00026476,7]
[367036844,1750626644169,-616.261536,0.00026476,7]
[367036845,1750626644178,-956.145783,0.00026476,7]
[367036846,1750626644358,-956.145783,0.00026476,7]
[367036847,1750626644374,-956.145783,0.00026476,7]
[367036848,1750626644384,-956.145783,0.00026476,7]
[367036849,1750626644394,-86.9753363,0.00026476,7]
[367036853,1750626646699,-406.0,0.00025239,2]
[367036855,1750626646708,-68.4680175,0.00026348,14]
[367036857,1750626646757,-429.35548269,0.00026348,14]
[367036858,1750626646771,-282.31648534,0.00026348,14]
[367036859,1750626646780,-869.1704467,0.00026476,7]
[367036860,1750626646790,-956.145783,0.00026476,7]
[367036861,1750626646800,-956.145783,0.00026476,7]
[367036862,1750626646811,-956.145783,0.00026476,7]
[367036863,1750626646820,-67.67412438,0.00026476,7]
[367036864,1750626716513,150.0,0.00022101,30]
[367036865,1750626716912,247.13,0.0002411,30]
[367036867,1750626798530,150.0,0.00022041,30]
[367036868,1750626798991,242.8,0.00024044,30]
[367036870,1750626804086,313.917683,0.00013699,2]
[367036872,1750626882346,150.0,0.00021911,30]
[367036873,1750626882745,238.52,0.00023903,30]
[367036875,1750626918655,1000.0,0.000201,2]
[367036876,1750626962810,150.0,0.00022052,30]
[367036877,1750626963308,234.28,0.00024056,30]
[367036878,1750627046450,150.0,0.00021913,30]
[367036879,1750627046885,230.09,0.00023905,30]
[367036880,1750627127285,150.0,0.00021945,30]
[367036881,1750627128236,225.94,0.00023941,30]
[367036882,1750627163563,151.0,0.000239,90]
[367036883,1750627212111,150.0,0.00021936,30]
[367036884,1750627212319,221.84,0.00023931,30]
[367036885,1750627291947,150.0,0.00021959,30]
[367036886,1750627292484,217.78,0.00023955,30]
[367036887,1750627375909,150.0,0.00021957,30]
[367036888,1750627376351,218.01,0.00023953,30]
[367036889,1750627456482,150.0,0.0002191,30]
[367036890,1750627456898,213.99,0.00023901,30]
[367036899,1750627538160,150.0,0.00021691,30]
[367036900,1750627538553,213.32,0.00023662,30]
[367036901,1750627539126,-313.917683,0.00020187,2]
[367036902,1750627539152,-394.17359238,0.00020612,3]
[367036908,1750627618688,150.0,0.00021694,30]
[367036909,1750627619121,209.36,0.00023666,30]
[367036910,1750627634130,-158.82640762,0.00020612,3]
[367036911,1750627634153,-780.32460928,0.00021855,2]
[367036912,1750627634181,-236.5252,0.00022497,2]
[367036913,1750627634202,-233.72,0.00022899,2]
[367036914,1750627634224,-168.00150534,0.00022977,2]
[367036915,1750627634252,-202.0,0.00023014,3]
[367036916,1750627634277,-300.0,0.00023177,2]
[367036917,1750627634299,-40.63952621,0.00023177,2]
[367036918,1750627640092,-259.36047379,0.00023177,2]
[367036919,1750627640119,-1200.0,0.00023178,2]
[367036920,1750627640147,-300.0,0.00023178,2]
[367036921,1750627640178,-300.0,0.00023178,2]
[367036922,1750627640206,-7676.57441694,0.00023179,2]
[367036923,1750627645092,-909.06134841,0.00023179,2]
[367036925,1750627654100,-218.60485289,0.00022483,2]
[367036926,1750627654126,-81.6321001,0.00023179,2]
[367036927,1750627654159,-5335.63607747,0.00023179,2]
[367036946,1750627701902,150.0,0.00021684,30]
[367036947,1750627702308,205.44,0.00023655,30]
[367036964,1750627748099,-227.08485363,0.0002138,2]
[367036965,1750627748121,-754.53486906,0.00021562,2]
[367036966,1750627748143,-1021.58705401,0.000219,2]
[367036967,1750627748164,-1090.16845621,0.00021987,2]
[367036968,1750627758130,-399.38856988,0.00021987,2]
[367036972,1750627764077,-1000.0,0.00022709,2]
[367036973,1750627764100,-300.0,0.00023178,2]
[367036974,1750627764121,-924.23095622,0.00023179,2]
[367036975,1750627781713,311.573473,0.00013699,2]
[367036976,1750627781935,311.573473,0.00020187,2]
[367036977,1750627782692,150.0,0.00021791,30]
[367036978,1750627783084,201.56,0.00023772,30]
[367037018,1750627832744,-182.1979162,0.00022471,2]
[367037020,1750627832754,-241.046457,0.00022911,2]
[367037022,1750627832764,-663.11313277,0.00023178,2]
[367037028,1750627832805,-536.88686723,0.00023178,2]
[367037029,1750627832815,-9972.86510086,0.00023179,2]
[367037032,1750627832824,-300.0,0.0002322,2]
[367037035,1750627832833,-300.0,0.0002322,2]
[367037038,1750627832843,-168.0,0.00023261,2]
[367037041,1750627832852,-532.41423639,0.00023321,2]
[367037043,1750627832862,-332.125,0.00023321,3]
[367037045,1750627832872,-168.0,0.00023399,2]
[367037047,1750627832881,-500.0,0.00023481,2]
[367037049,1750627832891,-500.0,0.00023559,2]
[367037051,1750627832900,-168.0,0.00023592,2]
[367037053,1750627832911,-151.0,0.00023648,5]
[367037055,1750627832922,-500.0,0.00023649,2]
[367037057,1750627832931,-500.0,0.0002365,2]
[367037059,1750627832941,-500.0,0.00023669,2]
[367037061,1750627832951,-500.0,0.00023671,2]
[367037063,1750627832960,-500.0,0.00023725,2]
[367037065,1750627832970,-160.0,0.00023751,2]
[367037067,1750627832979,-312.91436968,0.00023758,2]
[367037178,1750627838937,-235.55969427,0.00023817,2]
[367037179,1750627839143,-264.44030573,0.00023817,2]
[367037180,1750627839153,-405.33936541,0.00023825,2]
[367037181,1750627839163,-269.48524262,0.00023828,3]
[367037182,1750627839172,-142.50562965,0.00023828,3]
[367037198,1750627840958,-33.35966144,0.00023663,2]
[367037200,1750627840971,-126.64033856,0.00023663,2]
[367037202,1750627840980,-174.49437035,0.00023828,3]
[367037204,1750627840990,-317.0,0.00023828,3]
[367037206,1750627840999,-317.0,0.00023828,3]
[367037208,1750627841009,-194.5076377,0.00023853,2]
[367037210,1750627841019,-168.0,0.00023883,2]
[367037212,1750627841028,-212.65441534,0.000239,10]
[367037214,1750627841038,-151.0,0.0002397,5]
[367037216,1750627841047,-212.65441534,0.00024003,10]
[367037218,1750627841057,-168.0,0.00024021,7]
[367037220,1750627841067,-500.0,0.00024072,2]
[367037222,1750627841076,-212.65441534,0.00024107,10]
[367037224,1750627841086,-500.0,0.00024119,2]
[367037226,1750627841096,-500.0,0.00024128,2]
[367037227,1750627841106,-168.0,0.00024204,2]
[367037228,1750627841115,-212.65441534,0.0002421,10]
[367037229,1750627841125,-500.0,0.00024213,2]
[367037230,1750627841135,-168.0,0.00024254,2]
[367037231,1750627841144,-250.0,0.0002426,2]
[367037232,1750627841153,-150.14022982,0.0002427,2]
[367037239,1750627843893,-349.85977018,0.0002427,2]
[367037240,1750627843903,-151.0,0.00024291,6]
[367037241,1750627843913,-212.65441534,0.00024314,10]
[367037242,1750627843923,-500.0,0.00024327,2]
[367037243,1750627843932,-212.65441534,0.00024417,11]
[367037244,1750627843942,-168.0,0.00024465,2]
[367037246,1750627843951,-168.0,0.00024484,2]
[367037248,1750627843961,-271.89145659,0.00024519,2]
[367037249,1750627843970,-500.0,0.00024519,2]
[367037250,1750627843979,-500.0,0.00024519,2]
[367037251,1750627843989,-500.0,0.00024519,2]
[367037252,1750627843999,-500.0,0.00024519,2]
[367037253,1750627844008,-500.0,0.00024519,2]
[367037254,1750627844018,-500.0,0.00024519,2]
[367037255,1750627844027,-350.0,0.00024519,2]
[367037256,1750627844036,-500.0,0.00024519,2]
[367037257,1750627844046,-500.0,0.00024519,2]
[367037258,1750627844055,-500.0,0.00024519,2]
[367037259,1750627844065,-500.0,0.00024519,2]
[367037260,1750627844075,-500.0,0.00024519,2]
[367037261,1750627844084,-212.65441534,0.00024521,11]
[367037262,1750627844094,-500.0,0.00024546,2]
[367037263,1750627844103,-151.0,0.00024613,6]
[367037264,1750627844113,-212.65441534,0.00024624,11]
[367037265,1750627844122,-1000.0,0.00024658,2]
[367037266,1750627844131,-1000.0,0.00024658,2]
[367037267,1750627844141,-380.0,0.00024658,2]
[367037268,1750627844150,-1000.0,0.00024658,2]
[367037269,1750627844160,-200.0,0.00024658,15]
[367037270,1750627844172,-1000.0,0.00024658,2]
[367037271,1750627844182,-212.65441534,0.00024728,11]
[367037272,1750627844191,-500.0,0.00024794,2]
[367037273,1750627844201,-212.65441534,0.00024831,12]
[367037274,1750627844211,-160.0,0.00024862,2]
[367037275,1750627844222,-425.01221603,0.00024862,2]
[367037276,1750627844238,-846.39664074,0.00024862,2]
[367037277,1750627844247,-213.59462818,0.00024862,2]
[367037278,1750627844257,-230.14598372,0.00024862,2]
[367037279,1750627844267,-500.0,0.00024873,2]
[367037280,1750627844277,-207.4,0.00024892,2]
[367037281,1750627844287,-2188.26,0.000249,2]
[367037282,1750627844296,-306.0,0.00024918,2]
[367037283,1750627844308,-151.0,0.00024934,6]
[367037284,1750627844318,-212.65441534,0.00024934,12]
[367037285,1750627844327,-500.0,0.00024973,2]
[367037286,1750627844337,-500.0,0.00024973,2]
[367037287,1750627844346,-500.0,0.00024973,2]
[367037288,1750627844356,-500.0,0.00024973,2]
[367037289,1750627844366,-649.44,0.0002499,10]
[367037290,1750627844376,-826.95,0.0002499,10]
[367037291,1750627844386,-689.13,0.0002499,10]
[367037292,1750627844395,-574.27,0.0002499,10]
[367037293,1750627844405,-500.0,0.00024999,2]
[367037294,1750627844415,-500.0,0.00024999,2]
[367037295,1750627844425,-160.07464611,0.00024999,2]
[367037296,1750627844434,-500.0,0.00024999,2]
[367037297,1750627844444,-500.0,0.00024999,2]
[367037298,1750627844454,-500.0,0.00024999,2]
[367037299,1750627844463,-500.0,0.00024999,2]
[367037300,1750627844473,-500.0,0.00024999,2]
[367037301,1750627844483,-500.0,0.00024999,2]
[367037302,1750627844492,-500.0,0.00024999,2]
[367037303,1750627844503,-500.0,0.00024999,2]
[367037304,1750627844513,-432.89850638,0.00024999,2]
[367037305,1750627844522,-167.0,0.00025,7]
[367037306,1750627844532,-44266.41719266,0.00025,7]
[367037307,1750627844541,-118848.75256389,0.00025,2]
[367037308,1750627844551,-185889.42905586,0.00025,7]
[367037309,1750627844561,-668.61771145,0.00025,7]
[367037310,1750627844570,-160.0,0.00025,7]
[367037311,1750627844581,-212.65441534,0.00025038,12]
[367037312,1750627844592,-500.0,0.00025045,2]
[367037313,1750627844602,-235.15,0.00025065,2]
[367037314,1750627844612,-500.0,0.00025106,2]
[367037315,1750627844622,-212.65441534,0.00025141,12]
[367037316,1750627844633,-500.0,0.00025147,2]
[367037317,1750627844642,-420.0,0.00025156,2]
[367037318,1750627844652,-1000.0,0.00025189,5]
[367037319,1750627844663,-500.0,0.00025196,2]
[367037320,1750627844673,-420.0,0.00025201,2]
[367037321,1750627844683,-420.0,0.00025201,2]
[367037322,1750627844692,-500.0,0.00025223,2]
[367037323,1750627844702,-212.65441534,0.00025245,12]
[367037324,1750627844711,-151.0,0.00025256,6]
[367037325,1750627844721,-1680.0,0.00025272,2]
[367037326,1750627844731,-212.65441534,0.00025348,13]
[367037327,1750627844740,-500.0,0.00025367,2]
[367037328,1750627844750,-884.514294,0.00025385,2]
[367037329,1750627844759,-406.0,0.00025391,2]
[367037330,1750627844768,-965.0,0.00025391,2]
[367037331,1750627844778,-500.0,0.00025426,2]
[367037332,1750627844788,-500.0,0.00025447,2]
[367037333,1750627844797,-212.65441534,0.00025452,13]
[367037334,1750627844998,-500.0,0.00025463,2]
[367037335,1750627845011,-1000.0,0.00025521,2]
[367037336,1750627845021,-1000.0,0.00025521,2]
[367037337,1750627845030,-500.0,0.00025522,2]
[367037338,1750627845040,-212.65441534,0.00025555,13]
[367037339,1750627845050,-151.0,0.00025577,7]
[367037340,1750627845060,-500.0,0.00025595,2]
[367037341,1750627845069,-500.0,0.00025621,2]
[367037342,1750627845079,-500.0,0.00025636,2]
[367037343,1750627845090,-500.0,0.00025645,2]
[367037344,1750627845099,-500.0,0.00025657,2]
[367037345,1750627845109,-212.65441534,0.00025659,13]
[367037346,1750627845119,-151.0,0.00025716,12]
[367037347,1750627845129,-152.04280326,0.00025716,12]
[367037348,1750627845138,-500.0,0.00025716,12]
[367037349,1750627845148,-247.42732805,0.00025716,2]
[367037350,1750627845158,-151.0,0.00025716,12]
[367037351,1750627845168,-209.3546536,0.00025743,12]
[367037352,1750627845178,-151.0,0.00025743,12]
[367037353,1750627845187,-500.0,0.00025743,12]
[367037354,1750627845197,-151.0,0.00025743,12]
[367037355,1750627845207,-500.0,0.00025753,2]
[367037356,1750627845217,-302.34,0.00025753,30]
[367037357,1750627845227,-212.65441534,0.00025762,13]
[367037358,1750627845237,-500.0,0.0002577,2]
[367037359,1750627845247,-154.0,0.00025771,12]
[367037360,1750627845256,-500.0,0.00025771,12]
[367037361,1750627845266,-198.0,0.00025771,12]
[367037362,1750627845276,-450.0,0.00025798,12]
[367037363,1750627845285,-212.65441534,0.00025866,14]
[367037364,1750627845295,-500.0,0.00025873,2]
[367037365,1750627845304,-500.0,0.00025873,2]
[367037366,1750627845314,-500.0,0.00025873,2]
[367037367,1750627845326,-167.0,0.0002589,7]
[367037368,1750627845336,-151.0,0.00025899,7]
[367037369,1750627845345,-500.0,0.00025899,7]
[367037370,1750627845355,-403.26274804,0.00025899,2]
[367037371,1750627845367,-5708.5,0.000259,7]
[367037372,1750627845376,-1262.04,0.000259,7]
[367037373,1750627845387,-500.0,0.00025938,2]
[367037374,1750627845397,-1891.822254,0.00025958,8]
[367037375,1750627845407,-500.0,0.00025966,2]
[367037376,1750627845418,-212.65441534,0.00025969,14]
[367037377,1750627845427,-500.0,0.00025973,2]
[367037378,1750627845436,-600.0,0.00025973,2]
[367037379,1750627845447,-500.0,0.00025973,2]
[367037380,1750627845458,-500.0,0.00025973,2]
[367037381,1750627845468,-500.0,0.00025973,2]
[367037382,1750627845478,-500.0,0.00025973,2]
[367037383,1750627845487,-500.0,0.00025973,2]
[367037384,1750627845497,-500.0,0.00025973,2]
[367037385,1750627845506,-88915.2994322,0.00025973,2]
[367037386,1750627845515,-1139.84460005,0.00025973,2]
[367037387,1750627845525,-23703.15283687,0.00026,7]
[367037388,1750627845534,-508.36654091,0.00026022,2]
[367037389,1750627845543,-1000.0,0.00026068,2]
[367037390,1750627845553,-500.0,0.00026068,2]
[367037391,1750627845563,-212.65441534,0.00026072,14]
[367037392,1750627845575,-200.0,0.0002608,15]
[367037393,1750627845584,-403.26274805,0.00026083,2]
[367037394,1750627845594,-212.65441534,0.00026176,14]
[367037395,1750627845604,-500.0,0.00026208,3]
[367037396,1750627845613,-290.01,0.0002621,3]
[367037397,1750627845623,-870.07,0.0002621,3]
[367037398,1750627845632,-151.0,0.0002622,7]
[367037399,1750627845641,-215.0738,0.00026261,2]
[367037400,1750627845651,-212.65441534,0.00026279,14]
[367037401,1750627845661,-1715.808127,0.0002628,5]
[367037402,1750627845673,-1000.0,0.000263,5]
[367037403,1750627845682,-213.59462818,0.000263,7]
[367037404,1750627845692,-230.14598372,0.000263,7]
[367037405,1750627845702,-1000.0,0.0002632,5]
[367037406,1750627845711,-241.046457,0.00026336,2]
[367037407,1750627845721,-1000.0,0.0002634,5]
[367037408,1750627845731,-1000.0,0.0002636,5]
[367037409,1750627845740,-500.0,0.00026362,2]
[367037410,1750627845749,-349.12856479,0.00026376,2]
[367037411,1750627845759,-223.99849227,0.00026378,4]
[367037412,1750627845768,-181.24,0.00026378,4]
[367037413,1750627845778,-211.45101458,0.00026378,4]
[367037414,1750627845787,-201.39,0.00026378,4]
[367037415,1750627845797,-156.63838068,0.00026378,4]
[367037416,1750627845806,-156.63838068,0.00026378,4]
[367037417,1750627845816,-1000.0,0.0002638,5]
[367037418,1750627845826,-212.65441534,0.00026383,15]
[367037419,1750627845836,-9126.53490772,0.00026383,2]
[367037420,1750627845845,-223.99,0.00026383,4]
[367037421,1750627845854,-211.45,0.00026383,4]
[367037422,1750627845864,-156.63,0.00026383,4]
[367037423,1750627845873,-151.0,0.000264,19]
[367037424,1750627845882,-1000.0,0.000264,5]
[367037425,1750627845892,-187.872181,0.000264,2]
[367037426,1750627845901,-1000.0,0.000264,2]
[367037427,1750627845910,-500.0,0.00026408,6]
[367037428,1750627845921,-1000.0,0.0002642,5]
[367037429,1750627845931,-1000.0,0.0002644,5]
[367037430,1750627845940,-500.0,0.00026447,8]
[367037431,1750627845951,-88915.2994322,0.00026458,2]
[367037432,1750627845961,-1139.84460005,0.00026458,2]
[367037433,1750627845970,-1000.0,0.0002646,5]
[367037434,1750627845980,-88915.2994322,0.00026467,2]
[367037435,1750627845989,-1139.84460005,0.00026467,2]
[367037436,1750627845998,-88915.2994322,0.00026472,2]
[367037437,1750627846008,-1139.84460005,0.00026472,2]
[367037438,1750627846018,-500.0,0.00026473,2]
[367037439,1750627846028,-500.0,0.00026473,2]
[367037440,1750627846037,-500.0,0.00026473,2]
[367037441,1750627846047,-500.0,0.00026473,2]
[367037442,1750627846056,-500.0,0.00026473,2]
[367037443,1750627846065,-500.0,0.00026473,2]
[367037444,1750627846074,-500.0,0.00026473,2]
[367037445,1750627846086,-500.0,0.00026473,2]
[367037446,1750627846095,-888.47165862,0.00026476,7]
[367037447,1750627846105,-956.145783,0.00026476,7]
[367037448,1750627846114,-956.145783,0.00026476,7]
[367037449,1750627846124,-956.145783,0.00026476,7]
[367037450,1750627846133,-956.145783,0.00026476,7]
[367037451,1750627846143,-956.145783,0.00026476,7]
[367037453,1750627846152,-956.145783,0.00026476,7]
[367037454,1750627846163,-956.145783,0.00026476,7]
[367037455,1750627846172,-956.145783,0.00026476,7]
[367037456,1750627846182,-956.145783,0.00026476,7]
[367037457,1750627846191,-956.145783,0.00026476,7]
[367037458,1750627846200,-956.145775,0.00026476,7]
[367037459,1750627846209,-1347.32799123,0.00026476,3]
[367037460,1750627846218,-317.0,0.00026476,3]
[367037461,1750627846230,-317.0,0.00026476,3]
[367037462,1750627846239,-317.0,0.00026476,3]
[367037463,1750627846248,-317.0,0.00026476,3]
[367037464,1750627846258,-317.0,0.00026476,3]
[367037465,1750627846267,-317.0,0.00026476,3]
[367037466,1750627846276,-317.0,0.00026476,3]
[367037467,1750627846285,-317.0,0.00026476,3]
[367037468,1750627846294,-317.0,0.00026476,3]
[367037469,1750627846305,-317.0,0.00026476,3]
[367037470,1750627846315,-317.0,0.00026476,3]
[367037471,1750627846324,-317.0,0.00026476,3]
[367037472,1750627846334,-317.0,0.00026476,3]
[367037473,1750627846344,-317.0,0.00026476,3]
[367037474,1750627846353,-317.0,0.00026476,3]
[367037475,1750627846362,-317.0,0.00026476,3]
[367037476,1750627846372,-317.0,0.00026476,3]
[367037477,1750627846381,-317.0,0.00026476,3]
[367037478,1750627846391,-317.0,0.00026476,3]
[367037479,1750627846400,-317.0,0.00026476,3]
[367037480,1750627846409,-317.0,0.00026476,3]
[367037481,1750627846420,-317.0,0.00026476,3]
[367037482,1750627846429,-317.0,0.00026476,3]
[367037483,1750627846438,-317.0,0.00026476,3]
[367037484,1750627846448,-317.0,0.00026476,3]
[367037486,1750627846457,-317.0,0.00026476,3]
[367037487,1750627846467,-317.0,0.00026476,3]
[367037489,1750627846477,-317.0,0.00026476,3]
[367037491,1750627846486,-317.0,0.00026476,3]
[367037493,1750627846495,-317.0,0.00026476,3]
[367037495,1750627846505,-317.0,0.00026476,3]
[367037497,1750627846515,-317.0,0.00026476,3]
[367037499,1750627846524,-317.0,0.00026476,3]
[367037501,1750627846534,-168.93924067,0.00026476,3]
[367037503,1750627846543,-317.0,0.00026476,3]
[367037505,1750627846552,-317.0,0.00026476,3]
[367037507,1750627846561,-317.0,0.00026476,3]
[367037508,1750627846570,-317.0,0.00026476,3]
[367037509,1750627846580,-317.0,0.00026476,3]
[367037510,1750627846589,-168.24536552,0.00026476,3]
[367037512,1750627846598,-317.0,0.00026476,3]
[367037513,1750627846607,-263.54140191,0.00026476,3]
[367037514,1750627846616,-2000.0,0.00026477,7]
[367037515,1750627846626,-2000.0,0.00026477,7]
[367037516,1750627846635,-2000.0,0.00026477,7]
[367037517,1750627846645,-2000.0,0.00026477,7]
[367037518,1750627846654,-2000.0,0.00026477,7]
[367037519,1750627846664,-2000.0,0.00026477,7]
[367037520,1750627846674,-2000.0,0.00026477,7]
[367037521,1750627846683,-2000.0,0.00026477,7]
[367037522,1750627846692,-2000.0,0.00026477,7]
[367037523,1750627846702,-2000.0,0.00026477,7]
[367037524,1750627846711,-248.82,0.00026477,2]
[367037525,1750627846720,-2453.55275217,0.00026478,2]
[367037526,1750627846730,-1711.59543386,0.00026478,2]
[367037527,1750627846740,-88915.2994322,0.00026478,2]
[367037528,1750627846750,-3419.53380015,0.00026478,2]
[367037529,1750627846759,-1000.0,0.0002648,5]
[367037530,1750627846768,-1119.301354,0.0002648,5]
[367037531,1750627846778,-151.0,0.00026482,7]
[367037532,1750627846787,-151.0,0.00026482,7]
[367037533,1750627846796,-151.0,0.00026482,7]
[367037534,1750627846805,-151.0,0.00026482,7]
[367037535,1750627846814,-151.0,0.00026482,7]
[367037536,1750627846823,-151.0,0.00026482,7]
[367037537,1750627846833,-151.0,0.00026482,7]
[367037538,1750627846843,-151.0,0.00026482,7]
[367037539,1750627846852,-151.0,0.00026482,7]
[367037540,1750627846862,-151.0,0.00026482,7]
[367037541,1750627846871,-294.327448,0.00026482,7]
[367037542,1750627846881,-151.0,0.00026482,7]